fUSD/lending_fUSD_20250403
["ID","MTS","AMOUNT","RATE_DAILY","PERIOD"]
[357073448,1743690136077,693.3919763,0.00034885,30]
[357073449,1743690136809,719.04747942,0.00034885,30]
[357073450,1743690138063,745.65223616,0.00034885,30]
[357073451,1743690139496,773.2413689,0.00034885,30]
[357073452,1743690140030,773.2413689,0.00034885,30]
[357073455,1743690328108,5439.29467862,0.00034885,30]
[357073456,1743690369644,339.92503866,0.00034888,30]
[357073458,1743690424056,-150.0,0.00014899,2]
[357073459,1743690426133,-580.0191,0.000149,2]
[357073460,1743690426494,-822.06255454,0.000149,2]
[357073461,1743690427099,-2752.81994546,0.000149,2]
[357073462,1743690427123,-3023.89913692,0.000149,2]
[357073463,1743690427146,-3122.36468476,0.000149,2]
[357073465,1743690534049,-300.0,0.0001639,12]
[357073466,1743690535714,-50.0,0.0001639,12]
[357073468,1743690562267,-1721.86492726,0.000149,2]
[357073469,1743690562300,-1721.86492726,0.000149,2]
[357073470,1743690562332,-1382.76336917,0.000149,2]
[357073478,1743690603800,-529.76269359,0.000149,2]
[357073479,1743690603824,-173.6262,0.000149,2]
[357073480,1743690603847,-331.07,0.000149,2]
[357073481,1743690603869,-285.15009718,0.000149,2]
[357073482,1743690603891,-553.77873278,0.00014973,2]
[357073483,1743690603913,-157.86297138,0.00014973,2]
[357073484,1743690603938,-770.4026656,0.0001499,2]
[357073485,1743690603960,-6401.37,0.0001499,2]
[357073486,1743690603984,-1068.40958,0.00014999,5]
[357073487,1743690604006,-4080.02793018,0.00014999,2]
[357073488,1743690604035,-153646.53912929,0.00015,2]
[357073497,1743690631736,-854.25476081,0.00015,2]
[357073498,1743690631748,-389.9341405,0.00015,2]
[357073499,1743690631759,-136925.85893884,0.00015,2]
[357073500,1743690631769,-157.65005629,0.00015,2]
[357073501,1743690631778,-223282.16107389,0.00015,2]
[357073502,1743690631787,-1517.64,0.000153,2]
[357073503,1743690631796,-14611.54928883,0.000154,2]
[357073504,1743690631806,-7475.91545377,0.00016,2]
[357073505,1743690631815,-250.0,0.0001639,2]
[357073506,1743690631824,-250.0,0.0001639,2]
[357073507,1743690631834,-56850.35627864,0.0002,2]
[357073508,1743690631843,-31206.23855963,0.0002,2]
[357073509,1743690631955,-363.55366528,0.0002,2]
[357073510,1743690631966,-757.70112046,0.0002,2]
[357073563,1743690637543,-666.14256095,0.0002,2]
[357073564,1743690637554,-109375.72778161,0.0002,2]
[357073565,1743690637581,-10978.90500966,0.0002,2]
[357073732,1743690639588,-331.07,0.0002,2]
[357073735,1743690642488,-340.31353162,0.0002,2]
[357073736,1743690642500,-21116.84455875,0.0002,2]
[357073737,1743690642510,-461.29377531,0.0002,4]
[357073738,1743690642520,-1325.71766481,0.0002,4]
[357073739,1743690642530,-151.6,0.0002,2]
[357073740,1743690642540,-1551.32,0.00020145,2]
[357073741,1743690642550,-150.99,0.00020145,2]
[357073742,1743690642560,-5890.27,0.00020145,2]
[357073743,1743690642570,-28547.85,0.00020145,2]
[357073744,1743690642579,-1321.93,0.00021074,2]
[357073745,1743690642589,-23900.0,0.00021197,2]
[357073746,1743690642599,-250.0,0.00021226,2]
[357073747,1743690642608,-258.68247833,0.000217,2]
[357073748,1743690642617,-503.45970058,0.0002186,2]
[357073749,1743690642627,-500.0,0.00022185,2]
[357073750,1743690642637,-501.82652474,0.0002232,2]
[357073751,1743690642646,-507.23498983,0.0002232,2]
[357073752,1743690642655,-500.0,0.00022329,2]
[357073753,1743690642666,-1128.97271469,0.000225,2]
[357073754,1743690642675,-500.0,0.000225,2]
[357073755,1743690642685,-500.0,0.000225,2]
[357073756,1743690642695,-500.0,0.000225,2]
[357073757,1743690642704,-663.55,0.00022655,2]
[357073758,1743690642714,-6985.0,0.00022679,2]
[357073759,1743690642723,-200.0,0.00023,2]
[357073760,1743690642732,-166.66,0.00023199,2]
[357073761,1743690642741,-50188.77843811,0.000232,2]
[357073762,1743690642751,-200.0,0.000235,2]
[357073763,1743690642760,-1000.0,0.00023704,2]
[357073764,1743690642770,-4744.61,0.00023739,2]
[357073765,1743690642779,-427.83,0.00023836,2]
[357073766,1743690642788,-1100.0,0.000239,8]
[357073767,1743690642797,-200.0,0.00023917,2]
[357073768,1743690642807,-151.0,0.00023928,2]
[357073769,1743690642816,-166.0,0.00023928,2]
[357073770,1743690642825,-500.0,0.00023973,2]
[357073771,1743690642834,-51525.18999636,0.00024,2]
[357073772,1743690642843,-981.74000518,0.00024,2]
[357073773,1743690642852,-11885.51303322,0.00024,5]
[357073775,1743690644266,-14821.98991511,0.00024,5]
[357073786,1743690645482,-5763.3880079,0.00024,5]
[357073787,1743690645492,-151.0,0.00024,7]
[357073788,1743690645501,-151.0,0.00024,7]
[357073789,1743690645511,-151.0,0.00024,7]
[357073790,1743690645520,-158.032676,0.00024,7]
[357073791,1743690645531,-151.0,0.00024,7]
[357073792,1743690645540,-151.0,0.00024,7]
[357073793,1743690645550,-151.0,0.00024,7]
[357073794,1743690645560,-255.775623,0.00024,7]
[357073795,1743690645569,-40693.21471052,0.00024,2]
[357073796,1743690645579,-255.775623,0.00024,7]
[357073797,1743690645588,-151.0,0.00024,7]
[357073798,1743690645599,-151.0,0.00024,7]
[357073799,1743690645612,-161.145981,0.00024,7]
[357073800,1743690645621,-151.0,0.00024,7]
[357073801,1743690645630,-156.216439,0.00024,7]
[357073802,1743690645640,-151.0,0.00024,7]
[357073803,1743690645651,-151.0,0.00024,7]
[357073804,1743690645661,-227.238338,0.00024,7]
[357073805,1743690645671,-227.238338,0.00024,7]
[357073806,1743690645681,-783.56345028,0.0002402,2]
[357073807,1743690645690,-2751.0,0.00024138,2]
[357073808,1743690645700,-405.64407445,0.0002421,2]
[357073809,1743690645709,-3554.42197931,0.0002421,2]
[357073810,1743690645719,-500.0,0.00024497,2]
[357073811,1743690645729,-151.0,0.000248,7]
[357073812,1743690645739,-151.0,0.000248,7]
[357073813,1743690645749,-2083.86513,0.000248,7]
[357073814,1743690645759,-2083.86513,0.000248,7]
[357073815,1743690645768,-151.0,0.000248,7]
[357073816,1743690645778,-151.0,0.000248,7]
[357073817,1743690645787,-199.59243278,0.00025,2]
[357073818,1743690645796,-1600.85830672,0.00025,2]
[357073819,1743690645806,-255.93090405,0.00025,2]
[357073820,1743690645815,-212.37519869,0.00025,2]
[357073821,1743690645825,-200.0,0.00025,2]
[357073822,1743690645835,-1626.70666698,0.00025,7]
[357073823,1743690645844,-166.66,0.00025113,2]
[357073824,1743690645853,-183.0,0.000253,10]
[357073825,1743690645866,-150.0,0.00025554,7]
[357073826,1743690645876,-150.0,0.00025699,2]
[357073827,1743690645886,-3053.27137178,0.00026,2]
[357073828,1743690645895,-701.50433219,0.000264,2]
[357073829,1743690645905,-3127.07,0.00026403,2]
[357073830,1743690645914,-1000.0,0.00026667,2]
[357073831,1743690645923,-156.95,0.00026849,2]
[357073833,1743690645933,-491.61,0.00026849,2]
[357073835,1743690645944,-250.0,0.00027,2]
[357073836,1743690645957,-250.0,0.00027,2]
[357073838,1743690645966,-994.78179243,0.00027,2]
[357073840,1743690645976,-166.66,0.00027028,2]
[357073842,1743690645986,-300.0,0.00027397,30]
[357073844,1743690645995,-365.86,0.00027397,2]
[357073846,1743690646004,-760.0,0.000274,2]
[357073848,1743690646013,-325.0,0.000274,2]
[357073850,1743690646023,-193.19166393,0.000275,2]
[357073852,1743690646033,-202.79929198,0.000275,2]
[357073854,1743690646042,-1000.0,0.00027664,5]
[357073856,1743690646051,-246.33,0.00028,2]
[357073858,1743690646060,-988.4,0.00028152,2]
[357073860,1743690646069,-417.595,0.00028605,20]
[357073862,1743690646078,-151.0,0.00028605,7]
[357073865,1743690646088,-151.0,0.00028605,7]
[357073867,1743690646097,-188.703,0.00028605,20]
[357073869,1743690646108,-365.86,0.00028767,2]
[357073871,1743690646118,-300.0,0.00029,2]
[357073873,1743690646127,-683.83893294,0.00029,2]
[357073875,1743690646136,-159.878817,0.00029122,7]
[357073877,1743690646146,-152.509744,0.00029122,7]
[357073879,1743690646156,-151.0,0.00029122,7]
[357073881,1743690646165,-151.0,0.00029122,7]
[357073883,1743690646174,-151.0,0.00029122,7]
[357073885,1743690646183,-151.0,0.00029122,7]
[357073887,1743690646193,-255.775623,0.00029122,7]
[357073889,1743690646202,-255.775623,0.00029122,7]
[357073891,1743690646212,-151.0,0.00029122,7]
[357073893,1743690646222,-151.0,0.00029122,7]
[357073895,1743690646232,-151.0,0.00029122,7]
[357073897,1743690646241,-227.238338,0.00029122,7]
[357073899,1743690646251,-227.238338,0.00029122,7]
[357073901,1743690646261,-1000.0,0.0002963,2]
[357073903,1743690646270,-1852.42,0.00029852,2]
[357073905,1743690646279,-200.0,0.00029852,2]
[357073907,1743690646289,-171.53127834,0.0002989,2]
[357073909,1743690646298,-75460.19667033,0.000299,2]
[357073911,1743690646307,-228.15537472,0.0002999,2]
[357073913,1743690646317,-2272.95888042,0.0003,2]
[357073915,1743690646326,-781.16998157,0.0003,2]
[357073917,1743690646339,-11968.47259487,0.0003,2]
[357073919,1743690646348,-156.79,0.00030068,2]
[357073921,1743690646360,-365.86,0.00030137,2]
[357073924,1743690646369,-988.4,0.00030416,2]
[357073926,1743690646389,-350.0,0.00031,2]
[357073928,1743690646399,-365.86,0.00031507,2]
[357073930,1743690646409,-300.0,0.00031631,30]
[357073932,1743690646418,-543.19810742,0.000319,11]
[357073935,1743690646432,-392.18850512,0.000319,11]
[357073940,1743690646479,-1037.64318342,0.000319,11]
[357073943,1743690646493,-326.97020404,0.000319,11]
[357073945,1743690646502,-364.44487161,0.00031959,2]
[357073947,1743690646513,-1867.41512839,0.00031959,2]
[357073949,1743690646522,-151.6,0.0003199,2]
[357073951,1743690646532,-300.0,0.00031999,10]
[357073953,1743690646541,-5993.4733305,0.00032,2]
[357073958,1743690646575,-151.0,0.00023739,7]
[357073960,1743690646585,-1152.17693193,0.00032,2]
[357074204,1743690822521,3242.52038586,0.0003489,30]
[357074208,1743691013873,2751.0,0.00031993,120]
[357074210,1743691237481,3242.55282403,0.00034884,30]
[357074212,1743691647133,-151.422638,0.00023739,7]
[357074213,1743691647154,-164.663059,0.00024,7]
[357074214,1743691647174,-152.958511,0.00024,7]
[357074215,1743691647196,-151.0,0.00024,7]
[357074216,1743691647216,-151.0,0.00024,7]
[357074217,1743691647236,-151.0,0.00024,7]
[357074218,1743691647256,-151.0,0.00024,7]
[357074219,1743691647277,-151.0,0.00024,7]
[357074220,1743691647302,-151.0,0.00024,7]
[357074221,1743691647326,-151.0,0.00024,7]
[357074222,1743691647349,-255.17549218,0.00026749,2]
[357074223,1743691647372,-157.64,0.00026849,2]
[357074224,1743691647393,-250.0,0.00027,2]
[357074225,1743691647414,-300.0,0.00027397,30]
[357074226,1743691647435,-246.32,0.00028,2]
[357074227,1743691647457,-300.0,0.00029,2]
[357074228,1743691647478,-151.0,0.00029122,7]
[357074229,1743691647499,-151.0,0.00029122,7]
[357074230,1743691647520,-151.0,0.00029122,7]
[357074231,1743691647541,-151.0,0.00029122,7]
[357074232,1743691647562,-196.660901,0.00029122,7]
[357074233,1743691647583,-151.0,0.00029122,7]
[357074234,1743691647603,-208.774171,0.00029122,7]
[357074235,1743691647624,-300.0,0.00030553,2]
[357074236,1743691647645,-4818.22377611,0.00030707,2]
[357074237,1743691654082,-1444.23166452,0.00030707,2]
[357074245,1743691831764,-1717.4001764,0.00030707,2]
[357074246,1743691831776,-294.84302077,0.00030707,2]
[357074247,1743691831788,-2487.71584048,0.00030707,2]
[357074248,1743691831800,-1409.18840479,0.00030707,2]
[357074249,1743691831812,-2487.87541445,0.00030707,2]
[357074250,1743691831824,-8158.7506,0.00030707,2]
[357074251,1743691831992,-1081.77110248,0.00030707,2]
[357074252,1743691832002,-150.0,0.00030831,2]
[357074253,1743691832012,-200.0,0.00030921,2]
[357074254,1743691832022,-2093.85101558,0.00030985,2]
[357074255,1743691832035,-300.0,0.00030985,2]
[357074256,1743691832051,-6169.74898442,0.00030985,2]
[357074257,1743691832061,-350.0,0.00031,2]
[357074258,1743691832071,-16440.0,0.00031163,2]
[357074259,1743691832081,-356.52,0.00031218,2]
[357074260,1743691832090,-2372.3,0.00031296,2]
[357074261,1743691832100,-250.0,0.00031332,2]
[357074262,1743691832114,-949.85,0.00031377,2]
[357074263,1743691832124,-200.0,0.00031377,2]
[357074264,1743691832134,-1852.42,0.00031456,2]
[357074265,1743691832144,-219.52,0.00031456,2]
[357074266,1743691832153,-150.99,0.00031456,2]
[357074267,1743691832163,-150.0,0.00031463,7]
[357074268,1743691832173,-3127.07,0.00031541,2]
[357074269,1743691832183,-2439.76511658,0.000318,2]
[357074271,1743691832193,-302.2187,0.000319,2]
[357074273,1743691832203,-1315.3388,0.000319,2]
[357074275,1743691832212,-3535.8916,0.000319,2]
[357074277,1743691832222,-3903.5257,0.000319,2]
[357074279,1743691832232,-513.2565,0.000319,2]
[357074281,1743691832241,-831.5113,0.000319,2]
[357074283,1743691832250,-4531.40167284,0.000319,2]
[357074285,1743691832259,-615.7487,0.000319,2]
[357074287,1743691832269,-349.3754,0.000319,2]
[357074289,1743691832278,-166.66,0.00031986,2]
[357074291,1743691832288,-183.89,0.00031996,2]
[357074293,1743691832298,-500.0,0.00031996,2]
[357074296,1743691832308,-417.595,0.00031999,31]
[357074298,1743691832317,-155.15262887,0.00031999,2]
[357074300,1743691832326,-188.703,0.00031999,31]
[357074302,1743691832337,-59835.05787329,0.00032,2]
[357074304,1743691832350,-291.06,0.00032,2]
[357074307,1743691832376,-428.63300004,0.00032,2]
[357074312,1743691832423,-819.67608,0.00032,2]
[357074314,1743691832435,-67053.98376294,0.00032,2]
[357074316,1743691832446,-2853.02965654,0.00032,2]
[357074318,1743691832456,-154.35597,0.00032,7]
[357074320,1743691832466,-151.0,0.00032,7]
[357074322,1743691832475,-57196.17438104,0.00032,2]
[357074323,1743691832485,-227.238338,0.00032,7]
[357074324,1743691832495,-227.238338,0.00032,7]
[357074325,1743691832504,-296.661804,0.00032,7]
[357074326,1743691832514,-151.0,0.00032,7]
[357074327,1743691832523,-1000.0,0.00032078,2]
[357074329,1743691832533,-170.12,0.00032101,120]
[357074331,1743691832543,-157.17,0.0003223,2]
[357074333,1743691832553,-225.32,0.00032482,2]
[357074335,1743691832563,-1012.0,0.000326,7]
[357074337,1743691832573,-491.61,0.00032646,2]
[357074339,1743691832583,-200.0,0.00032877,14]
[357074341,1743691832592,-200.0,0.00032877,14]
[357074343,1743691832602,-237.83667558,0.000329,30]
[357074344,1743691832615,-160.44,0.00032932,120]
[357074345,1743691832624,-400.0,0.00033,2]
[357074347,1743691832634,-1000.0,0.00033,7]
[357074349,1743691832644,-219.52,0.00033029,2]
[357074351,1743691832654,-300.0,0.00033101,30]
[357074353,1743691832663,-2000.0,0.00033356,2]
[357074354,1743691832673,-1000.0,0.000334,7]
[357074355,1743691832683,-4531.40167276,0.00033567,2]
[357074356,1743691832693,-225.32,0.00033852,2]
[357074357,1743691832703,-151.0,0.00033864,7]
[357074358,1743691832713,-194.330376,0.00033864,7]
[357074359,1743691832723,-171.51086676,0.000339,2]
[357074360,1743691832733,-150.0,0.00033948,2]
[357074361,1743691832743,-384.1439187,0.00033949,4]
[357074362,1743691832752,-156.871947,0.0003399,7]
[357074363,1743691832761,-151.0,0.0003399,7]
[357074364,1743691832771,-500.0,0.00034,7]
[357074365,1743691832780,-500.0,0.00034,7]
[357074366,1743691832789,-500.0,0.00034,7]
[357074367,1743691832799,-500.0,0.00034,7]
[357074368,1743691832809,-500.0,0.00034,7]
[357074369,1743691832818,-500.0,0.00034,7]
[357074370,1743691832828,-435.99,0.00034,7]
[357074371,1743691833019,-500.0,0.00034,7]
[357074372,1743691833033,-500.0,0.00034,7]
[357074373,1743691833043,-500.0,0.00034,7]
[357074374,1743691833052,-500.0,0.00034,7]
[357074375,1743691833062,-500.0,0.00034,7]
[357074376,1743691833072,-500.0,0.00034,7]
[357074377,1743691833082,-500.0,0.00034,7]
[357074378,1743691833092,-500.0,0.00034,7]
[357074379,1743691833102,-500.0,0.00034,7]
[357074380,1743691833115,-500.0,0.00034,7]
[357074381,1743691833125,-500.0,0.00034,7]
[357074382,1743691833135,-500.0,0.00034,7]
[357074383,1743691833145,-500.0,0.00034,7]
[357074384,1743691833155,-500.0,0.00034,7]
[357074385,1743691833166,-500.0,0.00034,7]
[357074386,1743691833176,-500.0,0.00034,7]
[357074387,1743691833186,-500.0,0.00034,7]
[357074388,1743691833197,-500.0,0.00034,7]
[357074389,1743691833206,-500.0,0.00034,7]
[357074390,1743691833216,-500.0,0.00034,7]
[357074391,1743691833226,-500.0,0.00034,7]
[357074392,1743691833235,-500.0,0.00034,7]
[357074393,1743691833245,-500.0,0.00034,7]
[357074394,1743691833255,-500.0,0.00034,7]
[357074395,1743691833265,-500.0,0.00034,7]
[357074396,1743691833275,-500.0,0.00034,7]
[357074397,1743691833284,-500.0,0.00034,7]
[357074398,1743691833293,-500.0,0.00034,7]
[357074399,1743691833303,-500.0,0.00034,7]
[357074400,1743691833312,-500.0,0.00034,7]
[357074401,1743691833323,-500.0,0.00034,7]
[357074402,1743691833333,-500.0,0.00034,7]
[357074403,1743691833346,-500.0,0.00034,7]
[357074404,1743691833358,-500.0,0.00034,7]
[357074405,1743691833368,-500.0,0.00034,7]
[357074406,1743691833382,-500.0,0.00034,7]
[357074407,1743691833393,-500.0,0.00034,7]
[357074408,1743691833403,-500.0,0.00034,7]
[357074409,1743691833413,-580.83,0.00034,7]
[357074410,1743691833423,-1051.38202157,0.00034,2]
[357074411,1743691833434,-152.58,0.00034,2]
[357074412,1743691833444,-2000.0,0.000342,2]
[357074413,1743691833455,-528.18,0.000345,2]
[357074414,1743691833465,-150.0,0.00034548,10]
[357074415,1743691833475,-1082.34002966,0.0003455,2]
[357074416,1743691833485,-219.52,0.00034602,2]
[357074417,1743691833495,-417.47,0.00034884,2]
[357074418,1743691833505,-245.67731102,0.00034884,2]
[357074419,1743691833515,-900.40280536,0.00034884,2]
[357074420,1743691833525,-553.52,0.00034891,30]
[357074421,1743691833536,-283.49862371,0.00034896,2]
[357074422,1743691833547,-1320.46,0.000349,2]
[357074423,1743691833561,-15450.2169524,0.00034918,2]
[357074424,1743691833570,-15402.3976,0.00034928,2]
[357074425,1743691833580,-150.0,0.00034933,2]
[357074426,1743691833590,-2200.5632582,0.00034994,2]
[357074427,1743691833600,-12252.3683933,0.00034994,2]
[357074428,1743691833611,-2507.9339562,0.00034994,2]
[357074429,1743691833622,-383.74610568,0.00035,40]
[357074430,1743691833632,-450.0,0.00035,2]
[357074431,1743691833642,-166.4,0.00035,2]
[357074432,1743691833652,-3208.1025576,0.0003501,2]
[357074433,1743691833662,-227.238338,0.00035066,7]
[357074434,1743691833671,-227.238338,0.00035066,7]
[357074435,1743691833681,-158.760409,0.00035066,7]
[357074436,1743691833691,-15450.2169524,0.000351,2]
[357074437,1743691833701,-9738.66575784,0.0003511,30]
[357074438,1743691833710,-4531.40167276,0.00035233,2]
[357074439,1743691833721,-150.0,0.00035318,2]
[357074440,1743691833730,-1937.09825092,0.000355,7]
[357074441,1743691833739,-500.0,0.00035573,5]
[357074442,1743691833749,-151.0,0.00035574,7]
[357074443,1743691833759,-15450.2169524,0.0003558,2]
[357074444,1743691833770,-41171.64,0.00035584,2]
[357074445,1743691833780,-227.238338,0.0003559,7]
[357074446,1743691833790,-227.238338,0.0003559,7]
[357074447,1743691833800,-160.067813,0.000356,7]
[357074448,1743691833810,-150.0,0.00035616,2]
[357074449,1743691833820,-162.65300494,0.00035784,2]
[357074450,1743691833831,-750.29292428,0.00035784,8]
[357074451,1743691833841,-1100.0,0.000358,13]
[357074452,1743691833852,-7004.17558841,0.00035849,2]
[357074456,1743691837675,-760.0,0.000274,2]
[357074457,1743691837685,-1056.09,0.00029235,2]
[357074458,1743691837695,-1056.09,0.00031499,2]
[357074459,1743691837705,-1056.09,0.00033763,2]
[357074460,1743691837716,-1038.53321497,0.00035849,2]
[357074461,1743691837727,-270.82079017,0.00035849,2]
[357074462,1743691837739,-464.636633,0.00035849,2]
[357074463,1743691837751,-705.72902975,0.00035849,2]
[357074464,1743691837763,-5966.3216961,0.00035849,2]
[357074465,1743691837773,-227.238338,0.00035856,7]
[357074466,1743691837783,-227.238338,0.00035856,7]
[357074467,1743691837793,-26194.6234079,0.00035864,2]
[357074468,1743691837830,-279.63442064,0.00035864,2]
[357074469,1743691837934,-3110.85601168,0.00035864,2]
[357074470,1743691837945,-599.27576733,0.00035864,2]
[357074471,1743691837957,-266.12370393,0.00035864,2]
[357074474,1743691839998,-1285.09837437,0.00035864,2]
[357074475,1743691840184,-598.20664416,0.00035042,2]
[357074476,1743691840195,-127.30004594,0.00035042,2]
[357074477,1743691840206,-158.82470407,0.00035864,2]
[357074478,1743691840351,-365.93581632,0.00035864,2]
[357074497,1743691843578,-3047.05310089,0.00035864,2]
[357074498,1743691843589,-929.2687137,0.00035864,2]
[357074507,1743691845798,-205.78306331,0.00035864,2]
[357074508,1743691845810,-353.43713791,0.00035864,2]
[357074509,1743691845826,-38114.34039435,0.00035864,2]
[357074510,1743691845836,-151.6,0.00035864,2]
[357074511,1743691845846,-151.0,0.00035864,7]
[357074512,1743691845856,-227.238338,0.00035865,7]
[357074513,1743691845867,-227.238338,0.00035865,7]
[357074514,1743691845876,-151.0,0.00035865,7]
[357074515,1743691845886,-151.0,0.00035865,7]
[357074516,1743691845895,-151.0,0.00035865,7]
[357074517,1743691845905,-151.0,0.00035865,7]
[357074518,1743691845914,-151.0,0.00035865,7]
[357074519,1743691845924,-153.853401,0.00035865,7]
[357074520,1743691845933,-151.0,0.00035865,7]
[357074521,1743691845943,-151.0,0.00035865,7]
[357074522,1743691845952,-151.0,0.00035865,7]
[357074523,1743691845962,-151.0,0.00035865,7]
[357074524,1743691845971,-151.0,0.00035865,7]
[357074525,1743691845981,-151.0,0.00035865,7]
[357074526,1743691845990,-151.0,0.00035865,7]
[357074527,1743691846000,-15450.2169524,0.00035869,2]
[357074528,1743691846009,-152.629964,0.0003587,7]
[357074529,1743691846019,-151.0,0.0003587,7]
[357074530,1743691846029,-27678.56049562,0.00035874,2]
[357074531,1743691846045,-219524.91074338,0.00035874,2]
[357074532,1743691846054,-208084.040601,0.00035874,2]
[357074533,1743691846063,-151.6,0.00035874,2]
[357074534,1743691846072,-227.238338,0.00035878,7]
[357074535,1743691846082,-227.238338,0.00035878,7]
[357074536,1743691846091,-193.89395487,0.00035878,2]
[357074537,1743691846100,-171.736552,0.00035879,7]
[357074538,1743691846111,-151.0,0.00035879,7]
[357074539,1743691846121,-153.130518,0.00035879,7]
[357074540,1743691846131,-151.0,0.00035879,7]
[357074541,1743691846141,-151.0,0.00035879,7]
[357074543,1743691846150,-151.0,0.00035879,7]
[357074545,1743691846159,-151.0,0.00035879,7]
[357074547,1743691846169,-151.0,0.00035879,7]
[357074548,1743691846178,-154.881148,0.00035879,7]
[357074549,1743691846187,-151.0,0.00035879,7]
[357074550,1743691846197,-151.0,0.00035879,7]
[357074551,1743691846207,-151.0,0.00035879,7]
[357074552,1743691846216,-151.0,0.00035879,7]
[357074553,1743691846226,-151.0,0.00035879,7]
[357074554,1743691846235,-151.0,0.00035879,7]
[357074555,1743691846244,-151.0,0.00035879,7]
[357074556,1743691846254,-151.0,0.00035879,7]
[357074557,1743691846263,-255.775623,0.00035879,7]
[357074558,1743691846272,-255.775623,0.00035879,7]
[357074559,1743691846282,-160.427902,0.00035879,7]
[357074560,1743691846292,-151.0,0.00035879,7]
[357074561,1743691846301,-151.0,0.00035879,7]
[357074562,1743691846310,-151.0,0.00035879,7]
[357074563,1743691846320,-166.437602,0.00035879,7]
[357074564,1743691846329,-166.437602,0.00035879,7]
[357074565,1743691846339,-151.0,0.00035879,7]
[357074566,1743691846349,-151.0,0.00035879,7]
[357074567,1743691846362,-151.0,0.00035879,7]
[357074568,1743691846371,-151.0,0.00035879,7]
[357074569,1743691846381,-162.240061,0.00035879,7]
[357074570,1743691846391,-151.0,0.00035879,7]
[357074571,1743691846400,-151.0,0.00035879,7]
[357074572,1743691846410,-151.0,0.00035879,7]
[357074573,1743691846419,-857.0,0.00035879,5]
[357074574,1743691846428,-41212.67323093,0.00035884,90]
[357074575,1743691846459,-2715.14455245,0.00035884,90]
[357074576,1743691846474,-2081.31454498,0.00035884,90]
[357074577,1743691846488,-437.96627521,0.00035884,90]
[357074578,1743691927803,500.0,0.00034884,30]
[357074586,1743692472197,180230.27953372,0.00034885,30]
[357074587,1743692571665,-19523.93395276,0.00034885,30]
[357074588,1743692580483,-300.0,0.00027397,30]
[357074589,1743692580513,-300.0,0.00034405,30]
[357074590,1743692580541,-160.44,0.00034467,120]
[357074591,1743692580570,-334.076,0.00035781,43]
[357074592,1743692580606,-182.55686587,0.000372,103]
[357074593,1743692580637,-150.15456991,0.00039425,30]
[357074594,1743692580665,-150.15456991,0.00039671,30]
[357074595,1743692580697,-5688.98,0.0003978,60]
[357074596,1743692580728,-150.15456991,0.00039918,30]
[357074597,1743692580757,-8982.06753286,0.0003999,120]
[357074598,1743692580785,-13702.11880142,0.0004,30]
[357074599,1743692580813,-1363430.29590924,0.0004,30]
[357074600,1743692580840,-5041.48696616,0.0004,30]
[357074601,1743692580868,-500.0,0.0004,120]
[357074602,1743692580895,-6455.19648143,0.0004,30]
[357074603,1743692580920,-347.0,0.0004,120]
[357074604,1743692580948,-217.44332798,0.0004,30]